[Event "Titled Tuesday Blitz June 28 Late 2022"]
[White "Sanchez, Robert"]
[Black "Liu, Casper"]
[WhiteFideId "2034360"]
[BlackFideId "1454153"]
[WhiteElo "2095"]
[BlackElo "2025"]
[Result "1-0"]
[Round "02"]
[TimeControl "180+1"]
[Date "2022.06.29"]
[WhiteClock "0:01:41"]
[BlackClock "0:01:05"]

1. e4 {[%clk 0:03:00]}  Nc6 {[%clk 0:02:55]} 2. Nf3 {[%clk 0:03:01]}  f5 {[%clk 0:02:52]} 3. exf5 {[%clk 0:03:00]}  d5 {[%clk 0:02:52]} 4. d4 {[%clk 0:02:52]}  Bxf5 {[%clk 0:02:50]} 5. Bb5 {[%clk 0:02:52]}  e6 {[%clk 0:02:48]} 6. Ne5 {[%clk 0:02:52]}  Qd6 {[%clk 0:02:46]} 7. Bf4 {[%clk 0:02:51]}  O-O-O {[%clk 0:02:38]} 8. Bxc6 {[%clk 0:02:43]}  bxc6 {[%clk 0:02:32]} 9. O-O {[%clk 0:02:38]}  Qe7 {[%clk 0:01:50]} 10. c3 {[%clk 0:02:25]}  Qe8 {[%clk 0:01:47]} 11. Qa4 {[%clk 0:02:21]}  Kb7 {[%clk 0:01:40]} 12. Nd2 {[%clk 0:02:17]}  Bd6 {[%clk 0:01:39]} 13. Nb3 {[%clk 0:02:17]}  Nf6 {[%clk 0:01:18]} 14. Na5+ {[%clk 0:02:16]}  Kc8 {[%clk 0:01:17]} 15. Naxc6 {[%clk 0:02:03]}  Bxe5 {[%clk 0:01:17]} 16. Bxe5 {[%clk 0:02:00]}  a5 {[%clk 0:01:09]} 17. Qb5 {[%clk 0:01:53]}  Bd3 {[%clk 0:01:06]} 18. Qb8+ {[%clk 0:01:41]}  Kd7 {[%clk 0:01:05]} 19. Qxc7# {[%clk 0:01:41]} 1-0


[Site "https://www.chess.com"]

[Event "Titled Tuesday Blitz June 28 Late 2022"]
[White "Semenenko, Dmytry"]
[Black "Lauridsen, Jesper Morch"]
[WhiteFideId "14118645"]
[BlackFideId "1401890"]
[WhiteElo "2113"]
[BlackElo "2214"]
[Result "0-1"]
[Round "02"]
[TimeControl "180+1"]
[Date "2022.06.29"]
[WhiteClock "0:01:55"]
[BlackClock "0:00:14"]

1. Nf3 {[%clk 0:03:00]}  g6 {[%clk 0:02:58]} 2. c4 {[%clk 0:03:00]}  Bg7 {[%clk 0:02:59]} 3. d4 {[%clk 0:03:01]}  d6 {[%clk 0:02:58]} 4. Nc3 {[%clk 0:03:01]}  Nf6 {[%clk 0:02:57]} 5. e4 {[%clk 0:03:00]}  O-O {[%clk 0:02:57]} 6. Be2 {[%clk 0:03:01]}  e5 {[%clk 0:02:57]} 7. dxe5 {[%clk 0:03:01]}  dxe5 {[%clk 0:02:57]} 8. Bg5 {[%clk 0:03:02]}  Nbd7 {[%clk 0:02:54]} 9. O-O {[%clk 0:03:00]}  h6 {[%clk 0:02:48]} 10. Bh4 {[%clk 0:02:59]}  g5 {[%clk 0:02:44]} 11. Bg3 {[%clk 0:02:59]}  c6 {[%clk 0:02:36]} 12. Nxe5 {[%clk 0:02:58]}  Nxe5 {[%clk 0:02:18]} 13. Bxe5 {[%clk 0:02:55]}  Be6 {[%clk 0:02:13]} 14. Qxd8 {[%clk 0:02:47]}  Rfxd8 {[%clk 0:02:12]} 15. Rfd1 {[%clk 0:02:47]}  Kf8 {[%clk 0:02:00]} 16. f3 {[%clk 0:02:43]}  Nd7 {[%clk 0:01:47]} 17. Bxg7+ {[%clk 0:02:39]}  Kxg7 {[%clk 0:01:47]} 18. Rd6 {[%clk 0:02:40]}  Ne5 {[%clk 0:01:45]} 19. Rad1 {[%clk 0:02:30]}  Rxd6 {[%clk 0:01:44]} 20. Rxd6 {[%clk 0:02:30]}  Bxc4 {[%clk 0:01:43]} 21. Bxc4 {[%clk 0:02:25]}  Nxc4 {[%clk 0:01:42]} 22. Rd7 {[%clk 0:02:25]}  b6 {[%clk 0:01:25]} 23. b3 {[%clk 0:02:24]}  Ne5 {[%clk 0:01:24]} 24. Re7 {[%clk 0:02:21]}  Kf6 {[%clk 0:01:22]} 25. Rc7 {[%clk 0:02:21]}  a6 {[%clk 0:01:01]} 26. Kf2 {[%clk 0:02:18]}  Rd8 {[%clk 0:00:58]} 27. Ke2 {[%clk 0:02:18]}  Ke6 {[%clk 0:00:50]} 28. g3 {[%clk 0:02:17]}  Kd6 {[%clk 0:00:49]} 29. Ra7 {[%clk 0:02:17]}  a5 {[%clk 0:00:42]} 30. f4 {[%clk 0:02:17]}  Nd7 {[%clk 0:00:42]} 31. e5+ {[%clk 0:02:15]}  Ke6 {[%clk 0:00:39]} 32. Rc7 {[%clk 0:02:14]}  gxf4 {[%clk 0:00:27]} 33. gxf4 {[%clk 0:02:11]}  Nb8 {[%clk 0:00:27]} 34. Ne4 {[%clk 0:02:07]}  Rd7 {[%clk 0:00:25]} 35. Rc8 {[%clk 0:02:02]}  Na6 {[%clk 0:00:24]} 36. Rxc6+ {[%clk 0:02:02]}  Kf5 {[%clk 0:00:23]} 37. Ke3 {[%clk 0:01:57]}  Nb4 {[%clk 0:00:23]} 38. Rf6+ {[%clk 0:01:55]}  Kg4 {[%clk 0:00:23]} 39. Nf2+ {[%clk 0:01:55]}  Kh5 {[%clk 0:00:21]} 40. Rxb6 {[%clk 0:01:54]}  Nd5+ {[%clk 0:00:20]} 41. Ke4 {[%clk 0:01:53]}  Nxb6 {[%clk 0:00:20]} 42. f5 {[%clk 0:01:53]}  Rd2 {[%clk 0:00:19]} 43. Nd3 {[%clk 0:01:53]}  Rxa2 {[%clk 0:00:17]} 44. e6 {[%clk 0:01:53]}  fxe6 {[%clk 0:00:17]} 45. fxe6 {[%clk 0:01:53]}  Re2+ {[%clk 0:00:16]} 46. Kf5 {[%clk 0:01:54]}  Nd5 {[%clk 0:00:15]} 47. Nf4+ {[%clk 0:01:54]}  Nxf4 {[%clk 0:00:15]} 48. Kxf4 {[%clk 0:01:55]}  Rxe6 {[%clk 0:00:14]} 0-1


[Site "https://www.chess.com"]

[Event "Titled Tuesday Blitz June 28 Late 2022"]
[White "Silva, Miguel Antonio Neto"]
[Black "Manukyan, Artyom"]
[WhiteFideId "1911929"]
[BlackFideId "13305786"]
[WhiteElo "2204"]
[BlackElo "2034"]
[Result "0-1"]
[Round "02"]
[TimeControl "180+1"]
[Date "2022.06.29"]
[WhiteClock "0:00:09"]
[BlackClock "0:00:08"]

1. Nf3 {[%clk 0:03:00]}  d5 {[%clk 0:02:59]} 2. c4 {[%clk 0:02:59]}  e6 {[%clk 0:02:59]} 3. d4 {[%clk 0:02:58]}  Nf6 {[%clk 0:02:59]} 4. g3 {[%clk 0:02:57]}  dxc4 {[%clk 0:02:58]} 5. Bg2 {[%clk 0:02:58]}  Be7 {[%clk 0:02:59]} 6. O-O {[%clk 0:02:58]}  O-O {[%clk 0:02:59]} 7. Qc2 {[%clk 0:02:58]}  a6 {[%clk 0:02:59]} 8. Qxc4 {[%clk 0:02:58]}  b5 {[%clk 0:02:59]} 9. Qc2 {[%clk 0:02:59]}  Bb7 {[%clk 0:03:00]} 10. Bd2 {[%clk 0:02:59]}  Ra7 {[%clk 0:03:01]} 11. Rd1 {[%clk 0:02:54]}  Be4 {[%clk 0:02:58]} 12. Qc1 {[%clk 0:02:53]}  Nc6 {[%clk 0:02:53]} 13. e3 {[%clk 0:02:48]}  b4 {[%clk 0:02:53]} 14. Be1 {[%clk 0:02:45]}  Qa8 {[%clk 0:02:52]} 15. Nbd2 {[%clk 0:02:45]}  Bd5 {[%clk 0:02:52]} 16. Nh4 {[%clk 0:02:31]}  Bxg2 {[%clk 0:02:52]} 17. Nxg2 {[%clk 0:02:31]}  Nb8 {[%clk 0:02:52]} 18. Nb3 {[%clk 0:02:30]}  Nbd7 {[%clk 0:02:52]} 19. Qc4 {[%clk 0:02:12]}  a5 {[%clk 0:02:51]} 20. Rac1 {[%clk 0:02:11]}  Rc8 {[%clk 0:02:49]} 21. Qc6 {[%clk 0:02:07]}  Rb7 {[%clk 0:02:38]} 22. Nxa5 {[%clk 0:01:51]}  Rb6 {[%clk 0:02:37]} 23. Qxa8 {[%clk 0:01:50]}  Rxa8 {[%clk 0:02:38]} 24. Nc4 {[%clk 0:01:50]}  Rc6 {[%clk 0:02:28]} 25. a3 {[%clk 0:01:47]}  bxa3 {[%clk 0:02:26]} 26. Nxa3 {[%clk 0:01:47]}  Rxc1 {[%clk 0:02:26]} 27. Rxc1 {[%clk 0:01:47]}  Bxa3 {[%clk 0:02:23]} 28. bxa3 {[%clk 0:01:45]}  Rxa3 {[%clk 0:02:24]} 29. Rxc7 {[%clk 0:01:43]}  Ra1 {[%clk 0:02:24]} 30. Rc8+ {[%clk 0:01:41]}  Nf8 {[%clk 0:02:24]} 31. Kf1 {[%clk 0:01:32]}  g6 {[%clk 0:02:23]} 32. Ke2 {[%clk 0:01:28]}  Ra2+ {[%clk 0:02:21]} 33. Kf3 {[%clk 0:01:24]}  Kg7 {[%clk 0:02:21]} 34. Nf4 {[%clk 0:01:17]}  g5 {[%clk 0:02:21]} 35. Nd3 {[%clk 0:01:13]}  g4+ {[%clk 0:02:21]} 36. Kg2 {[%clk 0:01:08]}  Ne4 {[%clk 0:02:10]} 37. Ne5 {[%clk 0:01:03]}  h5 {[%clk 0:02:03]} 38. Rc7 {[%clk 0:00:50]}  Ng5 {[%clk 0:02:02]} 39. d5 {[%clk 0:00:47]}  exd5 {[%clk 0:01:59]} 40. Bc3 {[%clk 0:00:47]}  Nfe6 {[%clk 0:01:56]} 41. Nxf7+ {[%clk 0:00:37]}  d4 {[%clk 0:01:16]} 42. Bxd4+ {[%clk 0:00:25]}  Kf8 {[%clk 0:01:15]} 43. Nxg5 {[%clk 0:00:19]}  Nxc7 {[%clk 0:01:13]} 44. Nh7+ {[%clk 0:00:20]}  Kf7 {[%clk 0:01:12]} 45. Nf6 {[%clk 0:00:20]}  Kg6 {[%clk 0:01:12]} 46. Ne4 {[%clk 0:00:18]}  Ne6 {[%clk 0:01:11]} 47. Be5 {[%clk 0:00:18]}  Kf5 {[%clk 0:01:10]} 48. Nc3 {[%clk 0:00:15]}  Rc2 {[%clk 0:01:08]} 49. Bh8 {[%clk 0:00:16]}  Nc5 {[%clk 0:01:08]} 50. Bd4 {[%clk 0:00:15]}  Nd3 {[%clk 0:01:08]} 51. e4+ {[%clk 0:00:14]}  Ke6 {[%clk 0:01:04]} 52. Nd5 {[%clk 0:00:14]}  Ne1+ {[%clk 0:01:04]} 53. Kf1 {[%clk 0:00:14]}  Nf3 {[%clk 0:01:04]} 54. Be3 {[%clk 0:00:14]}  Ke5 {[%clk 0:00:58]} 55. Nf4 {[%clk 0:00:14]}  Kxe4 {[%clk 0:00:56]} 56. Nxh5 {[%clk 0:00:14]}  Nxh2+ {[%clk 0:00:50]} 57. Kg2 {[%clk 0:00:14]}  Nf3 {[%clk 0:00:50]} 58. Nf6+ {[%clk 0:00:14]}  Kf5 {[%clk 0:00:50]} 59. Nh5 {[%clk 0:00:14]}  Ra2 {[%clk 0:00:47]} 60. Kf1 {[%clk 0:00:14]}  Ke4 {[%clk 0:00:38]} 61. Nf6+ {[%clk 0:00:13]}  Kf5 {[%clk 0:00:38]} 62. Nh5 {[%clk 0:00:13]}  Ke4 {[%clk 0:00:19]} 63. Nf6+ {[%clk 0:00:13]}  Kd3 {[%clk 0:00:19]} 64. Nxg4 {[%clk 0:00:13]}  Ra1+ {[%clk 0:00:20]} 65. Kg2 {[%clk 0:00:13]}  Ke2 {[%clk 0:00:20]} 66. Nf6 {[%clk 0:00:07]}  Rg1+ {[%clk 0:00:20]} 67. Kh3 {[%clk 0:00:07]}  Ne5 {[%clk 0:00:16]} 68. Kh4 {[%clk 0:00:07]}  Nc4 {[%clk 0:00:12]} 69. Ng4 {[%clk 0:00:05]}  Kf3 {[%clk 0:00:11]} 70. Nh2+ {[%clk 0:00:04]}  Ke4 {[%clk 0:00:09]} 71. Ng4 {[%clk 0:00:04]}  Kf3 {[%clk 0:00:08]} 72. Nh2+ {[%clk 0:00:04]}  Ke4 {[%clk 0:00:07]} 73. Ng4 {[%clk 0:00:05]}  Kf5 {[%clk 0:00:06]} 74. Nh6+ {[%clk 0:00:05]}  Kg6 {[%clk 0:00:06]} 75. Ng4 {[%clk 0:00:05]}  Rh1+ {[%clk 0:00:05]} 76. Nh2 {[%clk 0:00:05]}  Rxh2+ {[%clk 0:00:06]} 77. Kg4 {[%clk 0:00:06]}  Nxe3+ {[%clk 0:00:06]} 78. fxe3 {[%clk 0:00:06]}  Ra2 {[%clk 0:00:07]} 79. e4 {[%clk 0:00:07]}  Ra4 {[%clk 0:00:08]} 80. Kf4 {[%clk 0:00:07]}  Kf6 {[%clk 0:00:08]} 81. g4 {[%clk 0:00:08]}  Kg6 {[%clk 0:00:08]} 82. g5 {[%clk 0:00:09]}  Ra5 {[%clk 0:00:08]} 0-1


[Site "https://www.chess.com"]

[Event "Titled Tuesday Blitz June 28 Late 2022"]
[White "Sliwicki, Damian"]
[Black "Corrales Jimenez, Fidel"]
[WhiteFideId "1127128"]
[BlackFideId "3506690"]
[WhiteElo "2081"]
[BlackElo "2541"]
[Result "0-1"]
[Round "02"]
[TimeControl "180+1"]
[Date "2022.06.29"]
[WhiteClock "0:00:03"]
[BlackClock "0:01:34"]

1. e4 {[%clk 0:03:00]}  c5 {[%clk 0:02:53]} 2. Nf3 {[%clk 0:02:45]}  d6 {[%clk 0:02:52]} 3. d4 {[%clk 0:02:43]}  cxd4 {[%clk 0:02:53]} 4. Qxd4 {[%clk 0:02:43]}  Nc6 {[%clk 0:02:51]} 5. Bb5 {[%clk 0:02:37]}  Bd7 {[%clk 0:02:51]} 6. Bxc6 {[%clk 0:02:35]}  Bxc6 {[%clk 0:02:52]} 7. Nc3 {[%clk 0:02:35]}  Nf6 {[%clk 0:02:52]} 8. Bg5 {[%clk 0:02:34]}  e6 {[%clk 0:02:52]} 9. O-O-O {[%clk 0:02:31]}  h6 {[%clk 0:02:52]} 10. Bh4 {[%clk 0:02:23]}  Be7 {[%clk 0:02:52]} 11. Kb1 {[%clk 0:02:15]}  O-O {[%clk 0:02:51]} 12. h3 {[%clk 0:02:07]}  d5 {[%clk 0:02:45]} 13. Qe3 {[%clk 0:01:55]}  Nxe4 {[%clk 0:02:38]} 14. Nxe4 {[%clk 0:01:40]}  Bxh4 {[%clk 0:02:37]} 15. Nxh4 {[%clk 0:01:39]}  Qxh4 {[%clk 0:02:38]} 16. Nc5 {[%clk 0:01:29]}  Rac8 {[%clk 0:02:36]} 17. Rd4 {[%clk 0:01:24]}  Qg5 {[%clk 0:02:34]} 18. f4 {[%clk 0:01:20]}  Qxg2 {[%clk 0:02:34]} 19. Rg1 {[%clk 0:01:20]}  Qh2 {[%clk 0:02:25]} 20. Rd2 {[%clk 0:01:14]}  d4 {[%clk 0:02:25]} 21. Qxd4 {[%clk 0:01:13]}  e5 {[%clk 0:02:25]} 22. fxe5 {[%clk 0:00:29]}  Rcd8 {[%clk 0:02:24]} 23. Rxg7+ {[%clk 0:00:13]}  Kh8 {[%clk 0:02:19]} 24. Rxh2 {[%clk 0:00:05]}  Rxd4 {[%clk 0:02:19]} 25. Rg1 {[%clk 0:00:05]}  Re8 {[%clk 0:02:12]} 26. Nb3 {[%clk 0:00:04]}  Rf4 {[%clk 0:02:11]} 27. Re2 {[%clk 0:00:03]}  Rf3 {[%clk 0:02:09]} 28. Rge1 {[%clk 0:00:03]}  Rxh3 {[%clk 0:02:08]} 29. Nd4 {[%clk 0:00:04]}  Bd7 {[%clk 0:02:07]} 30. b3 {[%clk 0:00:04]}  Bg4 {[%clk 0:01:56]} 31. Rg2 {[%clk 0:00:04]}  h5 {[%clk 0:01:56]} 32. Reg1 {[%clk 0:00:03]}  Rxe5 {[%clk 0:01:56]} 33. Kb2 {[%clk 0:00:02]}  f5 {[%clk 0:01:56]} 34. c3 {[%clk 0:00:03]}  Kh7 {[%clk 0:01:55]} 35. Rf2 {[%clk 0:00:03]}  Kg6 {[%clk 0:01:54]} 36. Nc2 {[%clk 0:00:04]}  Kg5 {[%clk 0:01:53]} 37. Rd2 {[%clk 0:00:05]}  f4 {[%clk 0:01:52]} 38. Nd4 {[%clk 0:00:05]}  f3 {[%clk 0:01:52]} 39. Rf2 {[%clk 0:00:05]}  Kf4 {[%clk 0:01:50]} 40. Rd1 {[%clk 0:00:04]}  Kg3 {[%clk 0:01:47]} 41. Rff1 {[%clk 0:00:04]}  Rh2+ {[%clk 0:01:46]} 42. Ka3 {[%clk 0:00:03]}  f2 {[%clk 0:01:38]} 43. Rd3+ {[%clk 0:00:03]}  Kf4 {[%clk 0:01:34]} 44. Rd2 {[%clk 0:00:03]}  Ke3 {[%clk 0:01:34]} 0-1


[Site "https://www.chess.com"]

[Event "Titled Tuesday Blitz June 28 Late 2022"]
[White "Tatarinov, Dmitry"]
[Black "Ardila, Oscar Humberto"]
[WhiteFideId "24160067"]
[BlackFideId "4404742"]
[WhiteElo "2302"]
[BlackElo "1956"]
[Result "1-0"]
[Round "02"]
[TimeControl "180+1"]
[Date "2022.06.29"]
[WhiteClock "0:00:25"]
[BlackClock "0:00:17"]

1. e4 {[%clk 0:02:55]}  e5 {[%clk 0:02:59]} 2. Nf3 {[%clk 0:02:55]}  Nf6 {[%clk 0:03:00]} 3. Nc3 {[%clk 0:02:45]}  Nc6 {[%clk 0:02:59]} 4. d4 {[%clk 0:02:17]}  exd4 {[%clk 0:02:59]} 5. Nxd4 {[%clk 0:02:17]}  Bb4 {[%clk 0:02:59]} 6. Nxc6 {[%clk 0:02:17]}  bxc6 {[%clk 0:03:00]} 7. Bd3 {[%clk 0:02:18]}  d5 {[%clk 0:03:00]} 8. exd5 {[%clk 0:02:17]}  cxd5 {[%clk 0:03:01]} 9. O-O {[%clk 0:02:16]}  O-O {[%clk 0:03:01]} 10. Bg5 {[%clk 0:02:13]}  c6 {[%clk 0:03:00]} 11. Qf3 {[%clk 0:02:12]}  Bd6 {[%clk 0:03:00]} 12. Rae1 {[%clk 0:01:59]}  h6 {[%clk 0:03:00]} 13. Bxf6 {[%clk 0:01:58]}  Qxf6 {[%clk 0:03:00]} 14. Qxf6 {[%clk 0:01:58]}  gxf6 {[%clk 0:03:00]} 15. Nd1 {[%clk 0:01:53]}  Be5 {[%clk 0:02:58]} 16. b3 {[%clk 0:01:47]}  a5 {[%clk 0:02:56]} 17. a4 {[%clk 0:01:47]}  Be6 {[%clk 0:02:44]} 18. Ne3 {[%clk 0:01:47]}  Bc3 {[%clk 0:02:39]} 19. Rd1 {[%clk 0:01:46]}  Rfe8 {[%clk 0:02:32]} 20. Nf5 {[%clk 0:01:45]}  Bxf5 {[%clk 0:02:23]} 21. Bxf5 {[%clk 0:01:46]}  Re7 {[%clk 0:02:22]} 22. Rd3 {[%clk 0:01:44]}  Be5 {[%clk 0:02:21]} 23. Rh3 {[%clk 0:01:41]}  Kg7 {[%clk 0:02:20]} 24. g3 {[%clk 0:01:18]}  Rae8 {[%clk 0:02:17]} 25. Kg2 {[%clk 0:01:04]}  Bd4 {[%clk 0:02:17]} 26. Rd1 {[%clk 0:00:58]}  Bb6 {[%clk 0:02:07]} 27. Rd3 {[%clk 0:00:58]}  Rd8 {[%clk 0:02:03]} 28. Rf3 {[%clk 0:00:54]}  Re5 {[%clk 0:02:02]} 29. Rf4 {[%clk 0:00:54]}  Rh8 {[%clk 0:01:47]} 30. Bd3 {[%clk 0:00:48]}  Bc7 {[%clk 0:01:35]} 31. Rfh4 {[%clk 0:00:45]}  h5 {[%clk 0:01:34]} 32. f4 {[%clk 0:00:46]}  Re1 {[%clk 0:01:21]} 33. Rxh5 {[%clk 0:00:46]}  Rxh5 {[%clk 0:01:21]} 34. Rxh5 {[%clk 0:00:46]}  Bb6 {[%clk 0:01:20]} 35. Kf3 {[%clk 0:00:46]}  Re3+ {[%clk 0:01:16]} 36. Kg4 {[%clk 0:00:46]}  Re1 {[%clk 0:01:13]} 37. Rh7+ {[%clk 0:00:45]}  Kf8 {[%clk 0:01:13]} 38. Rh8+ {[%clk 0:00:40]}  Ke7 {[%clk 0:01:12]} 39. Rc8 {[%clk 0:00:41]}  Kd7 {[%clk 0:01:11]} 40. Bf5+ {[%clk 0:00:41]}  Kd6 {[%clk 0:01:10]} 41. h4 {[%clk 0:00:37]}  Bf2 {[%clk 0:01:03]} 42. Rg8 {[%clk 0:00:33]}  Re3 {[%clk 0:00:59]} 43. Kh3 {[%clk 0:00:31]}  Re2 {[%clk 0:00:36]} 44. h5 {[%clk 0:00:30]}  Bg1 {[%clk 0:00:36]} 45. Kg4 {[%clk 0:00:30]}  Rh2 {[%clk 0:00:35]} 46. Rh8 {[%clk 0:00:28]}  Bf2 {[%clk 0:00:33]} 47. Kf3 {[%clk 0:00:28]}  Be1 {[%clk 0:00:33]} 48. h6 {[%clk 0:00:29]}  Rf2+ {[%clk 0:00:33]} 49. Ke3 {[%clk 0:00:25]}  Rg2 {[%clk 0:00:32]} 50. h7 {[%clk 0:00:25]}  Rxg3+ {[%clk 0:00:17]} 51. Ke2 {[%clk 0:00:25]} 1-0


[Site "https://www.chess.com"]

[Event "Titled Tuesday Blitz June 28 Late 2022"]
[White "Van Foreest, Jorden"]
[Black "Pinheiro, Iung Alicio de O."]
[WhiteFideId "1039784"]
[BlackFideId "2104350"]
[WhiteElo "2609"]
[BlackElo "2283"]
[Result "1-0"]
[Round "02"]
[TimeControl "180+1"]
[Date "2022.06.28"]
[WhiteClock "0:02:32"]
[BlackClock "0:00:07"]

1. Nf3 {[%clk 0:03:00]}  d5 {[%clk 0:02:58]} 2. b3 {[%clk 0:03:00]}  Bg4 {[%clk 0:02:54]} 3. Bb2 {[%clk 0:03:01]}  Bxf3 {[%clk 0:02:54]} 4. exf3 {[%clk 0:03:00]}  e6 {[%clk 0:02:50]} 5. f4 {[%clk 0:03:00]}  Nf6 {[%clk 0:02:49]} 6. g3 {[%clk 0:03:01]}  g6 {[%clk 0:02:49]} 7. Bg2 {[%clk 0:03:01]}  Bg7 {[%clk 0:02:50]} 8. O-O {[%clk 0:03:02]}  O-O {[%clk 0:02:50]} 9. d4 {[%clk 0:03:00]}  c5 {[%clk 0:02:48]} 10. dxc5 {[%clk 0:02:59]}  Nc6 {[%clk 0:02:28]} 11. c4 {[%clk 0:02:58]}  dxc4 {[%clk 0:02:17]} 12. Nd2 {[%clk 0:02:58]}  Nd7 {[%clk 0:02:06]} 13. Bxg7 {[%clk 0:02:57]}  Kxg7 {[%clk 0:02:07]} 14. Bxc6 {[%clk 0:02:56]}  bxc6 {[%clk 0:02:07]} 15. Nxc4 {[%clk 0:02:56]}  Nxc5 {[%clk 0:02:06]} 16. Ne5 {[%clk 0:02:57]}  Rc8 {[%clk 0:01:30]} 17. Rc1 {[%clk 0:02:49]}  Ne4 {[%clk 0:00:38]} 18. Qe2 {[%clk 0:02:35]}  Nf6 {[%clk 0:00:37]} 19. Rfd1 {[%clk 0:02:31]}  Qb6 {[%clk 0:00:37]} 20. Qb2 {[%clk 0:02:32]}  Kg8 {[%clk 0:00:07]} 21. Nc4 {[%clk 0:02:32]} 1-0


[Site "https://www.chess.com"]

[Event "Titled Tuesday Blitz June 28 Late 2022"]
[White "Vidonyak, Roman"]
[Black "Nozdrachev, Leonid"]
[WhiteFideId "14100622"]
[BlackFideId "24113433"]
[WhiteElo "2337"]
[BlackElo "2129"]
[Result "0-1"]
[Round "02"]
[TimeControl "180+1"]
[Date "2022.06.29"]
[WhiteClock "0:00:40"]
[BlackClock "0:01:12"]

1. d4 {[%clk 0:03:00]}  d5 {[%clk 0:02:57]} 2. c4 {[%clk 0:03:01]}  c6 {[%clk 0:02:58]} 3. Nf3 {[%clk 0:03:01]}  e6 {[%clk 0:02:57]} 4. Nc3 {[%clk 0:02:59]}  dxc4 {[%clk 0:02:56]} 5. a4 {[%clk 0:02:58]}  Bb4 {[%clk 0:02:47]} 6. e3 {[%clk 0:02:51]}  b5 {[%clk 0:02:47]} 7. Ne5 {[%clk 0:02:43]}  Nf6 {[%clk 0:02:43]} 8. Bd2 {[%clk 0:02:36]}  O-O {[%clk 0:02:37]} 9. Be2 {[%clk 0:02:31]}  Bb7 {[%clk 0:02:32]} 10. O-O {[%clk 0:02:31]}  Nbd7 {[%clk 0:02:25]} 11. Bf3 {[%clk 0:02:14]}  Bxc3 {[%clk 0:02:17]} 12. Bxc3 {[%clk 0:02:12]}  Nxe5 {[%clk 0:02:17]} 13. dxe5 {[%clk 0:02:11]}  Qxd1 {[%clk 0:02:16]} 14. Rfxd1 {[%clk 0:02:09]}  Nd5 {[%clk 0:02:17]} 15. Bd4 {[%clk 0:02:04]}  a6 {[%clk 0:02:02]} 16. Bc5 {[%clk 0:01:59]}  Rfd8 {[%clk 0:02:02]} 17. e4 {[%clk 0:01:53]}  Nf4 {[%clk 0:02:01]} 18. Rd6 {[%clk 0:01:49]}  Nd3 {[%clk 0:01:58]} 19. Bb6 {[%clk 0:01:47]}  Rdb8 {[%clk 0:01:41]} 20. Bd4 {[%clk 0:01:37]}  c5 {[%clk 0:01:40]} 21. Be3 {[%clk 0:01:24]}  Nxb2 {[%clk 0:01:40]} 22. Bxc5 {[%clk 0:01:23]}  Nxa4 {[%clk 0:01:39]} 23. Bb4 {[%clk 0:01:22]}  a5 {[%clk 0:01:35]} 24. Bd2 {[%clk 0:01:12]}  c3 {[%clk 0:01:34]} 25. Be3 {[%clk 0:01:12]}  Rc8 {[%clk 0:01:26]} 26. Rd7 {[%clk 0:00:58]}  Bc6 {[%clk 0:01:20]} 27. Rd6 {[%clk 0:00:53]}  b4 {[%clk 0:01:18]} 28. Bd1 {[%clk 0:00:49]}  Nb2 {[%clk 0:01:15]} 29. Bc2 {[%clk 0:00:43]}  a4 {[%clk 0:01:14]} 30. Bc1 {[%clk 0:00:40]}  b3 {[%clk 0:01:12]} 0-1


[Site "https://www.chess.com"]